Cogmind - Beta 14 @@@ ROGUE MODE // 2025.03.04 @ 00:20:19 Player: morimori Result: Destroyed by B-75 Beast with Magnetic Acceleration Cannon Performance ------------- Evolutions (3) 1500 Regions Visited (9) 1800 Robots Destroyed (121) 605 Value Destroyed (3304) 3304 Prototype IDs (16) 320 Alien Tech Used (1) 200 Bonus (-484) -484 TOTAL SCORE: 7245 Bonus ------- High Alert Combat Kills 332 Follower Combat Kills 20 Met Data Miner 300 Friendly Fire -1136 Cogmind --------- Core Integrity 0/700 Matter 300/300 Energy 100/100 System Corruption 1% Temperature Cool (0) Movement Core (350) Ox6 Location -6/Proximity Caves Parts ------- > --- POWER (1) -------- (None) > --- PROPULSION (5) --- (None) > --- UTILITY (6) ------ Large Storage Unit Improved Terrain Scan Processor > --- WEAPON (2) ------- (None) > --- INVENTORY (15) --- Improved Deuterium Engine Micro Nuclear Core Improved Heat Sink Huge Storage Unit YI-UF0's Bottomless Matter Pit (1500) Improved Sensor Array Improved Terrain Scanner Advanced Targeting Computer Improved Utility Shielding Medium Armor Plating Makeshift System Shield Authchip [Device] Component Analysis Suite High-powered Shotgun Makeshift Hammer Peak State ------------ > --- POWER ------------ Improved Deuterium Engine > --- PROPULSION ------- Improved Hover Unit Aerolev Unit Aerolev Unit Gravmag System Antigrav System > --- UTILITY ---------- Large Storage Unit Improved Sensor Array Improved Signal Interpreter Improved Terrain Scanner Improved Terrain Scan Processor Improved Utility Shielding > --- WEAPON ----------- Plasma Cannon High-powered Shotgun > --- INVENTORY -------- Micro Nuclear Core Improved Hover Unit Heat Sink Improved Heat Sink Huge Storage Unit YI-UF0's Bottomless Matter Pit Advanced Targeting Computer Medium Armor Plating Makeshift System Shield Authchip [Device] Component Analysis Suite Arc Projector Heavy Flail Makeshift Hammer [Rating: 51] Favorites ----------- Power Micro Nuclear Core Engine Ion Engine Power Core Micro Nuclear Core Propulsion Wheel Treads Advanced Treads Wheel Wheel Hover Unit Aerolev Unit Utility Large Storage Unit Device Seismic Detector Storage Large Storage Unit Processor Improved Signal Interpreter Protection Hardened Light Armor Plating Weapon Light EM Pulse Cannon Energy Gun EM Pulse Gun Energy Cannon Light EM Pulse Cannon Ballistic Gun Assault Rifle Launcher YI-UF0's Doublenader Impact Weapon Makeshift Hammer Build | -11 -10 -10 -9 -8 -7 -7 -7 -7 -6 ------- Run | Yrd Mat Min Mat Mat Fac Low Low Dat Pro Slots Evolved 6 | . . . 2 2 2 . . . . Power . | . . . . . . . . . . Propulsion 3 | . . . . 2 1 . . . . Utility 3 | . . . 2 . 1 . . . . Weapon . | . . . . . . . . . . Parts Attached 165 | 8 7 19 32 61 15 4 10 . 9 Power 14 | 2 1 2 1 5 2 . 1 . . Engine 9 | 2 1 2 1 2 . . 1 . . Core 5 | . . . . 3 2 . . . . Reactor . | . . . . . . . . . . Propulsion 44 | 2 1 7 4 18 9 . 2 . 1 Treads 2 | . . . . . 2 . . . . Leg . | . . . . . . . . . . Wheel 23 | 2 1 6 4 8 2 . . . . Hover 19 | . . 1 . 10 5 . 2 . 1 Flight . | . . . . . . . . . . Utility 42 | 2 1 4 9 14 2 2 4 . 4 Device 19 | 1 . 3 3 5 1 . 3 . 3 Storage 9 | 1 1 1 2 4 . . . . . Processor 2 | . . . . 1 1 . . . . Hackware . | . . . . . . . . . . Protection 12 | . . . 4 4 . 2 1 . 1 Artifact . | . . . . . . . . . . Weapon 65 | 2 4 6 18 24 2 2 3 . 4 Energy Gun 25 | 1 1 2 7 14 . . . . . Energy Cannon 8 | . 2 1 . . 1 1 2 . 1 Ballistic Gun 15 | 1 1 1 3 6 1 1 . . 1 Ballistic Cannon . | . . . . . . . . . . Launcher 11 | . . 2 6 3 . . . . . Special Weapon . | . . . . . . . . . . Impact Weapon 6 | . . . 2 1 . . 1 . 2 Slashing Weapon . | . . . . . . . . . . Piercing Weapon . | . . . . . . . . . . Special Melee Weapon . | . . . . . . . . . . Unidentified Prototypes 5 | . . 2 1 1 . . 1 . . Corrupted Parts 4 | . . 4 . . . . . . . System Corruption 17 | . . 17 . . . . . . . Parts Lost 34 | . . 4 4 19 . . . . 7 Power 1 | . . . . 1 . . . . . Propulsion 20 | . . 1 3 10 . . . . 6 Utility 4 | . . 1 1 1 . . . . 1 Weapon 9 | . . 2 . 7 . . . . . Highest Loss Streak 9 | . . 1 2 9 . . . . 6 To Critical Strikes . | . . . . . . . . . . Average Slot Usage (%) 89 | . 100 92 95 85 77 84 90 92 77 Engine 6 | . 14 11 11 3 . . 3 7 5 Core 2 | . . . . 5 7 7 3 . . Wheel 17 | . 28 26 21 16 16 . . . . Hover 9 | . . 1 . 9 3 38 35 35 27 Device 13 | . 14 12 16 11 15 15 13 14 10 Storage 10 | . 14 14 11 9 7 7 7 7 7 Processor 4 | . . . . 3 10 15 14 14 13 Protection 5 | . . . 13 11 . . 5 7 5 Energy Gun 5 | . . 11 9 8 . . . . . Energy Cannon 5 | . 22 8 . . 4 . 5 7 1 Ballistic Gun 4 | . 4 2 10 4 2 . . . 1 Impact Weapon 1 | . . . . 1 4 . 1 . 3 Peak Build Rating 51 | 7 10 14 29 36 46 40 49 49 51 Average Rating 23 | 5 9 10 18 26 34 34 42 49 40 On Entrance 24 | . 7 10 11 18 22 34 40 49 49 Naked Turns . | . . . . . . . . . . Heaviest Build 108 | 15 34 34 45 108 38 45 41 41 50 Greatest Support 56 | 26 26 26 26 40 56 36 43 43 43 Greatest Overweight (x) 35 | . 1 1 4 35 5 1 1 . 6 Average Overweight (x) . | . . 1 1 2 . . . . . Largest Inventory Capacity 25 | 8 15 15 15 25 15 15 15 15 15 Average Capacity 16 | 7 13 15 15 21 15 15 15 15 15 Most Carried 25 | 7 15 15 15 25 15 15 15 15 15 Average Carried 14 | 4 10 14 14 18 14 13 13 15 14 Final Capacity 15 | 8 15 15 15 15 15 15 15 15 15 Final Carried 15 | 6 15 13 15 15 14 12 15 15 15 Class Distribution -------------------- 56% | Mutant 21% | Scavenger-Mutant 16% | Scavenger-Scout Dominant Class ---------------- Mutant | -10/Materials Mutant | -10/Mines Mutant | -9/Materials Mutant | -8/Materials Scavenger-Mutant | -7/Factory Scavenger-Scout | -7/Lower Caves Scavenger-Scout | -7/Lower Caves Scavenger-Scout | -7/Data Miner Scavenger-Scout | -6/Proximity Caves Resources | -11 -10 -10 -9 -8 -7 -7 -7 -7 -6 ----------- Run | Yrd Mat Min Mat Mat Fac Low Low Dat Pro Matter Collected 4112 | 322 90 573 406 2308 155 40 150 . 68 Remotely . | . . . . . . . . . . Salvage Created 4814 | 170 473 612 767 2378 242 . 119 . 53 Parts 268 | 14 33 30 61 115 12 . 3 . . Haulers Intercepted 2 | . . . 1 1 . . . . . Recyclers Shooed 3 | . 1 . . 2 . . . . . Parts Field Recycled . | . . . . . . . . . . Retrieved Matter . | . . . . . . . . . . Parts Self-Destructed . | . . . . . . . . . . Prevented . | . . . . . . . . . . Kills | -11 -10 -10 -9 -8 -7 -7 -7 -7 -6 ------- Run | Yrd Mat Min Mat Mat Fac Low Low Dat Pro Combat Hostiles Destroyed 82 | . 12 13 15 40 1 . . . 1 Melee 1 | . . . . 1 . . . . . Guns 29 | . 2 5 4 18 . . . . . Cannons 8 | . 5 2 . . 1 . . . . AOE 30 | . 3 5 10 12 . . . . . Classes Destroyed 17 | 2 3 1 6 3 1 . 1 . . Worker 6 | . . . 2 4 . . . . . Builder 5 | . . . 1 4 . . . . . Tunneler 9 | 5 . 3 . 1 . . . . . Hauler 2 | . . . 1 1 . . . . . Recycler 8 | 1 . . . 5 2 . . . . Operator 2 | . . . 1 1 . . . . . Watcher 9 | . 3 . 3 2 1 . . . . Swarmer 16 | . 6 . 6 4 . . . . . Grunt 49 | . 6 12 3 28 . . . . . Brawler 1 | . . . . 1 . . . . . Duelist 1 | . . . 1 . . . . . . Protector 1 | . . . . 1 . . . . . Researcher 1 | . . . . . . . 1 . . Sentry 10 | . . . 5 5 . . . . . Hunter 2 | . . . . 1 . . . . 1 Programmer 1 | . . . . . 1 . . . . Assembled 1 | . . 1 . . . . . . . Best Kill Streak 11 | 2 3 8 5 11 2 . . . 1 Combat Bots Only 9 | . 3 5 3 9 1 . . . 1 Max Kills in Single Turn 4 | 1 2 4 4 4 1 . 1 . 1 Gunslinging . | . . . . . . . . . . Exploded 4 | . 2 1 3 4 . . . . . Melee 1 | . . . . 1 . . . . . Uniques/NPCs Destroyed 1 | . . 1 . . . . . . . YI-UF0 (-10/Mines) Combat | -11 -10 -10 -9 -8 -7 -7 -7 -7 -6 -------- Run | Yrd Mat Min Mat Mat Fac Low Low Dat Pro Hostile Shots Fired 436 | . 26 31 75 219 9 . . . 76 Missed 128 | . 7 8 23 62 6 . . . 22 Damage Taken 5089 | . 198 338 763 2667 28 . . . 1095 Core 1482 | . 37 67 209 449 11 . . . 709 Absorbed by Shields . | . . . . . . . . . . Redirected to Shielding 73 | . . . . 73 . . . . . Regen/Repaired (Parts) 94 | . . . 21 73 . . . . . Core Remaining (%) 55 | 100 . 58 47 18 . . . . . Volleys Fired 241 | 14 25 30 45 102 11 . 13 . 1 Largest 2 | 2 2 2 2 2 2 . 1 . 2 Hottest 112 | 70 112 112 90 110 105 . 80 . 105 Shots Fired 435 | 28 50 56 76 191 19 . 13 . 2 Gun 314 | 28 10 25 62 180 8 . . . 1 Cannon 91 | . 40 26 . . 11 . 13 . 1 Launcher 30 | . . 5 14 11 . . . . . Special . | . . . . . . . . . . Kinetic 127 | 14 10 . 26 68 8 . . . 1 Thermal 39 | 14 . . . . 11 . 13 . 1 Explosive 15 | . . 5 4 6 . . . . . Electromagnetic 254 | . 40 51 46 117 . . . . . Robot Hit Streak 18 | 7 17 18 12 6 2 . 6 . 4 Robot Miss Streak 7 | 3 3 4 3 4 7 . 1 . . Penetration Max . | . . . . . . . . . . Secondary Targets 3 | . . . . 3 . . . . . Max Gunslinging Chain 1 | . . . . 1 . . . . . Shots Hit Robots 288 | 17 34 36 47 137 7 . 9 . 1 Core Hits 177 | 7 15 20 29 97 5 . 4 . . Critical Kills 2 | . . . . 1 . . . . 1 Critical Parts Destroyed 6 | . . . . 6 . . . . . Critical Strikes 12 | 1 1 . . 9 . . . . 1 Burn 1 | 1 . . . . . . . . . Meltdown 1 | . . . . . . . . . 1 Corrupt 3 | . 1 . . 2 . . . . . Smash 7 | . . . . 7 . . . . . Melee Attacks 45 | . . . 2 34 3 . 1 . 5 Impact 45 | . . . 2 34 3 . 1 . 5 Slashing . | . . . . . . . . . . Piercing . | . . . . . . . . . . Sneak Attacks . | . . . . . . . . . . Combat Hostiles . | . . . . . . . . . . Follow-up Attacks . | . . . . . . . . . . Damage Inflicted 9160 | 213 924 1204 1472 4979 164 . 177 . 27 Guns 3360 | 213 80 215 609 2213 30 . . . . Cannons 1406 | . 700 368 . . 134 . 177 . 27 Explosions 3418 | . 144 621 863 1790 . . . . . Melee 957 | . . . . 957 . . . . . Ramming 19 | . . . . 19 . . . . . Kinetic 1370 | 138 80 . 269 853 30 . . . . Thermal 1054 | 75 144 280 44 173 134 . 177 . 27 Explosive 2275 | . . 341 572 1362 . . . . . Electromagnetic 3485 | . 700 583 587 1615 . . . . . Impact 957 | . . . . 957 . . . . . Slashing . | . . . . . . . . . . Piercing . | . . . . . . . . . . Highest Corruption 17 | . . 17 . 5 1 1 1 1 1 Average Corruption 3 | . . 11 . 5 1 1 1 1 1 Corruption Purged . | . . . . . . . . . . Corruption Blocked . | . . . . . . . . . . Effects 35 | . . 19 . 10 . 1 3 . 2 Message Errors 6 | . . 2 . 3 . . 1 . . Matter Fused 8 | . . 3 . 4 . . . . 1 Heat Flow Errors 3 | . . 2 . . . . . . 1 Energy Discharges 7 | . . 4 . 1 . . 2 . . Parts Fused 1 | . . 1 . . . . . . . Data Loss (minor) 5 | . . 3 . 2 . . . . . Misfires 2 | . . 2 . . . . . . . Alerts 3 | . . 2 . . . 1 . . . Overload Shots . | . . . . . . . . . . Overflow Damage 350 | . 28 33 37 252 . . . . . Projectiles 28 | . 28 . . . . . . . . Explosions 85 | . . 33 37 15 . . . . . Melee 237 | . . . . 237 . . . . . Knockbacks 6 | . . . . 6 . . . . . Impact 5 | . . . . 5 . . . . . Kinetic . | . . . . . . . . . . Secondary 1 | . . . . 1 . . . . . Self-Inflicted Damage 270 | . 20 79 63 108 . . . . . Shots 10 | . 1 2 4 3 . . . . . Rammed 1 | . . . . 1 . . . . . Targets Rammed 1 | . . . . 1 . . . . . Kicked . | . . . . . . . . . . Crushed . | . . . . . . . . . . Highest Temperature 507 | 38 231 322 127 507 50 . 172 . 242 Average Temperature 82 | 13 71 95 53 104 21 . 69 . 90 Received Heat Transfer 2004 | . 27 168 243 1431 12 . . . 123 Effects 10 | . . 1 . 9 . . . . . Shutdowns 1 | . . . . 1 . . . . . Energy Bleed 4 | . . . . 4 . . . . . Interference 4 | . . 1 . 3 . . . . . Short Circuit 1 | . . . . 1 . . . . . Siege Activations . | . . . . . . . . . . Robots Corrupted 14 | . 2 2 1 9 . . . . . Combat Hostiles 13 | . 2 1 1 9 . . . . . Parts Fried 28 | . 5 5 2 16 . . . . . Impact Corruptions 12 | . . . . 12 . . . . . Robots Melted 1 | . . . . . . . . . 1 Combat Hostiles 1 | . . . . . . . . . 1 Parts Melted 5 | . . . . . 1 . 1 . 3 Heat Transferred 1846 | 296 150 350 50 250 250 . 450 . 50 Parts Sabotaged . | . . . . . . . . . . Parts Stolen . | . . . . . . . . . . Parts Stripped . | . . . . . . . . . . Power Chain Reactions 14 | . 2 4 4 4 . . . . . Alert | -11 -10 -10 -9 -8 -7 -7 -7 -7 -6 ------- Run | Yrd Mat Min Mat Mat Fac Low Low Dat Pro Peak Influence 857 | 30 363 289 292 857 360 . . . . Initial 353 | . 19 73 . 83 353 . . . . Average 253 | 13 202 96 123 454 290 . . . . Maximum Alert Level 3 | . 1 1 1 3 1 . . . . Low Security (%) 47 | 100 57 93 76 9 17 . . . . Level 1 36 | . 42 6 23 38 82 . . . . Level 2 9 | . . . . 32 . . . . . Level 3 5 | . . . . 19 . . . . . Level 4 . | . . . . . . . . . . Level 5 . | . . . . . . . . . . High Security . | . . . . . . . . . . Max Security . | . . . . . . . . . . Squads Dispatched 18 | . 4 . 2 7 4 . . . 1 Investigation 9 | . 4 . 1 2 2 . . . . Extermination 2 | . . . . . 2 . . . . Reinforcement 4 | . . . 1 3 . . . . . Assault 3 | . . . . 2 . . . . 1 Garrison . | . . . . . . . . . . Intercept . | . . . . . . . . . . Searches Triggered . | . . . . . . . . . . Construction Impeded 1 | . . . . 1 . . . . . Haulers Reinforced . | . . . . . . . . . . Active Scanning Responses . | . . . . . . . . . . Cargo Convoy Interrupts . | . . . . . . . . . . Stealth | -11 -10 -10 -9 -8 -7 -7 -7 -7 -6 --------- Run | Yrd Mat Min Mat Mat Fac Low Low Dat Pro Distress Signals 13 | . 3 1 2 6 . . . . 1 Communications Jammed . | . . . . . . . . . . Distress Signals . | . . . . . . . . . . Times Spotted 151 | . 25 14 23 74 6 . . . 9 Peak Tracking Total 12 | . 4 3 6 12 2 . . . 10 Tactical Retreats 15 | . 5 1 . 9 . . . . . Traps | -11 -10 -10 -9 -8 -7 -7 -7 -7 -6 ------- Run | Yrd Mat Min Mat Mat Fac Low Low Dat Pro Traps Triggered 5 | . . . . 1 4 . . . . Indirectly . | . . . . . . . . . . Trap Hack Attempts . | . . . . . . . . . . Triggered . | . . . . . . . . . . Disarmed . | . . . . . . . . . . Reprogrammed . | . . . . . . . . . . Reused . | . . . . . . . . . . Traps Extracted . | . . . . . . . . . . Installed . | . . . . . . . . . . Triggered 2 | . 1 . 1 . . . . . . Machines | -11 -10 -10 -9 -8 -7 -7 -7 -7 -6 ---------- Run | Yrd Mat Min Mat Mat Fac Low Low Dat Pro Machines Disabled 10 | . 3 1 1 4 1 . . . . Max in Single Turn 1 | . 1 1 1 1 1 . . . . Garrison Access 1 | . . . . . 1 . . . . Machines Repaired . | . . . . . . . . . . Machines Dismantled . | . . . . . . . . . . Machines Sabotaged . | . . . . . . . . . . Overloaded Fab Kills . | . . . . . . . . . . Hacking | -11 -10 -10 -9 -8 -7 -7 -7 -7 -6 --------- Run | Yrd Mat Min Mat Mat Fac Low Low Dat Pro Machines Accessed 36 | . 10 1 6 10 4 1 . 4 . Terminals 21 | . 8 1 4 7 1 . . . . Fabricators . | . . . . . . . . . . Repair Stations 2 | . . . 1 1 . . . . . Recycling Units 4 | . 2 . 1 1 . . . . . Scanalyzers 3 | . . . . 1 2 . . . . Garrison Access 1 | . . . . . 1 . . . . Total Hacks 115 | . 27 3 16 29 8 1 . 31 . Successful 76 | . 13 2 8 15 6 1 . 31 . Failed 39 | . 14 1 8 14 2 . . . . Catastrophic 2 | . . 1 . 1 . . . . . Database Lockouts . | . . . . . . . . . . Manual 37 | . 16 2 9 9 1 . . . . Terminals 58 | . 22 3 12 19 2 . . . . Fabricators . | . . . . . . . . . . Repair Stations 5 | . . . 2 3 . . . . . Recycling Units 10 | . 5 . 2 3 . . . . . Scanalyzers 9 | . . . . 4 5 . . . . Garrison Access 1 | . . . . . 1 . . . . Terminal Hacks 53 | . 8 2 3 7 1 1 . 31 . Record 11 | . . . . . . . . 11 . Part Schematic 13 | . 1 . . . . . . 12 . Robot Schematic 5 | . . . . . . . . 5 . Robot Analysis 1 | . . . . 1 . . . . . Prototype ID Bank 5 | . . . . 1 1 . . 3 . Open Door 1 | . . . . . . 1 . . . Terminal Index 2 | . 1 . 1 . . . . . . Alert Level 2 | . . 1 . 1 . . . . . Unreport Threat 4 | . 1 1 1 1 . . . . . Locate Traps 6 | . 3 . 1 2 . . . . . Recall Investigation 1 | . 1 . . . . . . . . Zone Layout 2 | . 1 . . 1 . . . . . Fabricator Hacks . | . . . . . . . . . . Repair Station Hacks 4 | . . . 2 2 . . . . . Scan Component 2 | . . . 1 1 . . . . . Repair 2 | . . . 1 1 . . . . . Recycling Unit Hacks 2 | . 1 . . 1 . . . . . Retrieve Components 2 | . 1 . . 1 . . . . . Scanalyzer 8 | . . . . 4 4 . . . . Insert Component 4 | . . . . 2 2 . . . . Analyze 4 | . . . . 2 2 . . . . Garrison Access Hacks 1 | . . . . . 1 . . . . Seal Access 1 | . . . . . 1 . . . . Unauthorized Hacks 8 | . 4 . 3 1 . . . . . Terminals 4 | . 2 . 2 . . . . . . Botnet 3 | . 2 . 1 . . . . . . Operators 1 | . . . 1 . . . . . . Fabricators . | . . . . . . . . . . Repair Stations . | . . . . . . . . . . Recycling Units 4 | . 2 . 1 1 . . . . . Tunnel 4 | . 2 . 1 1 . . . . . Scanalyzers . | . . . . . . . . . . Garrison Access . | . . . . . . . . . . Data Cores Recovered . | . . . . . . . . . . Used . | . . . . . . . . . . Hacking Detections 24 | . 9 1 4 8 2 . . . . Full Trace Events 2 | . 2 . . . . . . . . Feedback Events . | . . . . . . . . . . Feedback Blocked . | . . . . . . . . . . Robot Schematics Acquired 5 | . . . . . . . . 5 . Robots Built . | . . . . . . . . . . Authchips . | . . . . . . . . . . Time . | . . . . . . . . . . Total Robot Build Rating . | . . . . . . . . . . Part Schematics Acquired 17 | . 1 . . 2 2 . . 12 . Parts Built . | . . . . . . . . . . Authchips . | . . . . . . . . . . Time . | . . . . . . . . . . Total Part Build Rating . | . . . . . . . . . . Parts Repaired 2 | . . . 1 1 . . . . . Time 64 | . . . 26 38 . . . . . Parts Recycled . | . . . . . . . . . . Recycled Matter . | . . . . . . . . . . Retrieved Matter . | . . . . . . . . . . Retrieved Components 3 | . . . . 3 . . . . . Parts Scanalyzed 4 | . . . . 2 2 . . . . Part Schematics Acquired 4 | . . . . 2 2 . . . . Parts Damaged 1 | . . . . . 1 . . . . Bothacking | -11 -10 -10 -9 -8 -7 -7 -7 -7 -6 ------------ Run | Yrd Mat Min Mat Mat Fac Low Low Dat Pro Used RIF Installer . | . . . . . . . . . . Robots Hacked . | . . . . . . . . . . Non-combat . | . . . . . . . . . . Combat . | . . . . . . . . . . Robot Hacks Applied . | . . . . . . . . . . Relay Couplers Released . | . . . . . . . . . . Fabnet Peak Effective % . | . . . . . . . . . . Robots Rewired . | . . . . . . . . . . Allies Hacked . | . . . . . . . . . . Hacks Repelled . | . . . . . . . . . . Allies | -11 -10 -10 -9 -8 -7 -7 -7 -7 -6 -------- Run | Yrd Mat Min Mat Mat Fac Low Low Dat Pro Total Allies 1 | . . . . . . . . . 1 Largest Group 1 | . . . . . . . . . 1 Highest-Rated Group 96 | . . . . . . . . . 96 Highest-Rated Ally 96 | . . . . . . . . . 96 Total Orders . | . . . . . . . . . . Ally Attacks 4 | . . . . . . . . . 4 Total Damage 220 | . . . . . . . . . 220 Kills 1 | . . . . . . . . . 1 Allies Corrupted . | . . . . . . . . . . Allies Melted . | . . . . . . . . . . Intel | -11 -10 -10 -9 -8 -7 -7 -7 -7 -6 ------- Run | Yrd Mat Min Mat Mat Fac Low Low Dat Pro Robot Analysis Total 1 | . . . . 1 . . . . . Derelict Logs Recovered 5 | . . 1 . . . 1 1 . 2 Drone Launches . | . . . . . . . . . . Drone Recoveries . | . . . . . . . . . . Exploration | -11 -10 -10 -9 -8 -7 -7 -7 -7 -6 ------------- Run | Yrd Mat Min Mat Mat Fac Low Low Dat Pro Turns Passed 6926 | 159 1094 869 1034 1666 772 453 412 31 436 Spaces Moved 5909 | 98 816 600 646 804 712 1080 579 77 497 Core 27 | 3 . . . 2 . . . . 22 Treads . | . . . . . . . . . . Legs . | . . . . . . . . . . Wheels 3496 | 95 816 600 646 677 662 . . . . Hover 2386 | . . . . 125 50 1080 579 77 475 Flight . | . . . . . . . . . . Fastest Speed 40 | 50 80 95 105 43 40 40 40 40 40 Average Speed 82 | 88 91 95 107 131 96 40 41 40 61 Slowest Speed 1800 | 90 95 115 140 1800 360 100 100 40 350 Overloaded Moves . | . . . . . . . . . . Propulsion Burnouts . | . . . . . . . . . . Robots Hopped . | . . . . . . . . . . Cave-ins Triggered . | . . . . . . . . . . Exploration Rate (%) 60 | 6 98 90 45 55 22 98 67 68 51 Regions Visited 9 Branch Regions 5 Pre-discovered Areas 6 | . 2 1 1 1 . . . 1 . Known Exits Taken 5 | . . . . 1 1 1 1 1 . Unknown Exits Taken 4 | 1 1 1 1 . . . . . . Scrap Searched 13 | . . 1 . . . 3 8 . 1 Spaces Dug 11 | . . . 2 . 3 . 1 . 5 Terrain Destroyed 226 | . 9 82 58 68 3 . 1 . 5 Melee 11 | . . . 2 . 3 . 1 . 5 Projectile . | . . . . . . . . . . AOE 215 | . 9 82 56 68 . . . . . Terrain Rammed . | . . . . . . . . . . Walls Destroyed . | . . . . . . . . . . Machines Disabled . | . . . . . . . . . . Actions | -11 -10 -10 -9 -8 -7 -7 -7 -7 -6 --------- Run | Yrd Mat Min Mat Mat Fac Low Low Dat Pro Total 7478 | 139 1114 840 902 1179 773 1099 736 76 620 Wait 983 | 11 243 183 159 131 17 14 127 . 98 Move 5900 | 97 815 599 645 803 711 1079 578 76 497 Hop . | . . . . . . . . . . Pick Up 64 | 8 14 3 9 23 4 1 2 . . Fast Attach 32 | 5 1 3 4 9 9 . 1 . . Attach 37 | 2 . 4 3 19 3 2 2 . 2 Detach 17 | . . 1 . 6 2 . 2 . 6 Swap 98 | 1 6 12 26 33 3 2 8 . 7 Drop 60 | 1 10 5 9 18 10 1 2 . 4 Fire 241 | 14 25 30 45 102 11 . 13 . 1 Melee 45 | . . . 2 34 3 . 1 . 5 Ram 1 | . . . . 1 . . . . . Kick . | . . . . . . . . . . Crush . | . . . . . . . . . . Escape Stasis . | . . . . . . . . . . Rewire . | . . . . . . . . . . Trap . | . . . . . . . . . . Miscellaneous . | . . . . . . . . . . Route ------- -11/Scrapyard -10/Materials (discovered 4 exits: *Mat x3 / *Min) -10/Mines -9/Materials -8/Materials -7/Factory -7/Lower Caves -7/Lower Caves -7/Data Miner -6/Proximity Caves History --------- Turn | Location | Event 16 | -11/Scrapyard | Discovered new exit (range 15) 160 | -11/Scrapyard | Entered Materials 324 | -10/Materials | Build established: Mutant 331 | -10/Materials | Discovered new exit (range 14) 457 | -10/Materials | Discovered new exit (range 3) 1108 | -10/Materials | Discovered new exit (range 16) 1174 | -10/Materials | Discovered new exit (range 13) 1254 | -10/Materials | Entered Mines 1276 | -10/Mines | Murdered YI-UF0 1283 | -10/Mines | Found Corrupted Prototype Storage 1286 | -10/Mines | Found Corrupted Prototype Launcher 1346 | -10/Mines | Excavation squad dispatched 1346 | -10/Mines | A large section of the Mines collapsed 1579 | -10/Mines | Identified YI-UF0's Doublenader 1596 | -10/Mines | Excavation squad dispatched 1661 | -10/Mines | A weapon hastily lodged in a ceiling crevice suddenly fell to the ground 1779 | -10/Mines | Discovered new exit (range 5) 1881 | -10/Mines | Identified YI-UF0's Bottomless Matter Pit 1882 | -10/Mines | System corruption reached 10% 2123 | -10/Mines | Entered Materials 2123 | -9/Materials | Evolved 2 slots: Utility x2 2516 | -9/Materials | Repaired EM Pulse Gun 2987 | -9/Materials | Core integrity fell below 50% 3116 | -9/Materials | Discovered new exit (range 11) 3157 | -9/Materials | Entered another Materials area 3157 | -8/Materials | Evolved 2 slots: Propulsion x2 3340 | -8/Materials | Destroyed 8 combat bots 3352 | -8/Materials | Lost 4 parts (1p1n2w) 3430 | -8/Materials | Lost 3 parts (2n1w) 3684 | -8/Materials | Discovered new exit (range 16) 4357 | -8/Materials | First assault squad dispatched 4423 | -8/Materials | Core integrity fell below 50% 4537 | -8/Materials | Lost 9 parts (5n4w) 4538 | -8/Materials | Destroyed 9 combat bots 4655 | -8/Materials | Repaired Imp. Utility Shielding 4695 | -8/Materials | Core integrity fell below 20% 4822 | -8/Materials | Identified exit to Factory 4823 | -8/Materials | Entered Factory 4823 | -7/Factory | Evolved 2 slots: Propulsion x1, Utility x1 4962 | -7/Factory | Build established: Scavenger-Mutant 5589 | -7/Factory | Discovered new exit (range 5) 5591 | -7/Factory | Identified exit to Lower Caves 5595 | -7/Factory | Entered Lower Caves 5868 | -7/Lower Caves | Build established: Scavenger-Scout 5894 | -7/Lower Caves | Encountered a Warlord checkpoint 5980 | -7/Lower Caves | Discovered new exit (range 7) 6042 | -7/Lower Caves | Identified exit to Lower Caves 6048 | -7/Lower Caves | Entered another Lower Caves area 6139 | -7/Lower Caves | Found Alien Artifact 6139 | -7/Lower Caves | Identified Core Expander 6139 | -7/Lower Caves | Installed Core Expander, added new Utility slot 6349 | -7/Lower Caves | Learned Factory stockpile data 6418 | -7/Lower Caves | Encountered a Warlord checkpoint 6454 | -7/Lower Caves | Discovered new exit (range 14) 6459 | -7/Lower Caves | Identified exit to Data Miner 6460 | -7/Lower Caves | Entered Data Miner 6460 | -7/Data Miner | Discovered new exit (range 7) 6468 | -7/Data Miner | Met Data Miner 6475 | -7/Data Miner | Learned location of Section 7 (-2) 6475 | -7/Data Miner | Acquired the access code to Warlord's prototype stash 6482 | -7/Data Miner | Received God Mode back door access code from Data Miner 6491 | -7/Data Miner | Identified exit to Proximity Caves 6491 | -7/Data Miner | Entered Proximity Caves 6557 | -6/Proximity Caves | Learned location of 1 exit from Factory 6557 | -6/Proximity Caves | Learned Factory emergency access door positions 6613 | -6/Proximity Caves | Spotted B-75 Beast 6657 | -6/Proximity Caves | Spotter reported a threat 6658 | -6/Proximity Caves | Spotter reported a threat 6725 | -6/Proximity Caves | Spotter reported a threat 6872 | -6/Proximity Caves | Core integrity fell below 50% 6899 | -6/Proximity Caves | Lost 6 parts (5n1u) 6916 | -6/Proximity Caves | Escorted by Enhanced Grunt 6916 | -6/Proximity Caves | Attracted the attention of an 0b10 outpost 6919 | -6/Proximity Caves | Core integrity fell below 20% 6920 | -6/Proximity Caves | Spotter reported a threat 6927 | -6/Proximity Caves | Destroyed by B-75 Beast with Magnetic Acceleration Cannon Last Messages --------------- 06835_ Dropped Plasma Cannon. 06835_ Dropped Hvy. Flail. 06837_ Dropped Heat Sink. 06844_ Gravmag System destroyed. 06851_ Antigrav System destroyed. 06851_ Knocked back. 06858_ Acquired 4 matter. 06868_ Imp. Signal Interpreter destroyed. 06868_ Critical hit (Blast). 06868_ Acquired 1 matter. 06876_ Knocked back. 06896_ System corrupted: Heat flow error (+276). 06916_ Enhanced Grunt: "Protecting LRC-V3." 06916_ Y-64 Sentinel: "DETECTED UNIDENTIFIED DERELICT." 06920_ Y-64 Sentinel: "REQUESTING BACKUP." 06920_ ALERT: Unidentified potential threat approaching Complex 0b10. 06920_ Penetrated by Slug. 06924_ Chain reaction triggered in Lgt. Nuclear Core. 06924_ S-27 Virus destroyed. 06925_ Slug penetrates Enhanced Grunt. Map ----- +----------------------------------------------------+ | ?????????????????????????????????????????????????? | | ?????????????????????????????????????????????????? | | ?????????????????????????????????????????????????? | | ?????????????????????????????????????????????????? | | ?????????????????????????????????????????????????? | | ?????????????????????????????????????????????????? | | ?????????????????????????????????????????????????? | | ?????????????????????????????????????????????????? | | ?????????????????????????????????????????????????? | | ?????????????????????????????????????????????????? | | ????????????????????????#????????????????????????? | | ???????????????????????? ????????????????????????? | | ????????????????? ?????#/#???????????????????????? | | ???????????????? ???? ???????????????????????? | | ? ? ????????????? ???? ???????????????????????? | | ?????????????? ??? ???????????????????????? | | ?????????????# #### ???????????????????????? | | ????????????## ; ; ???????????????????????? | | ????????????# Y ; ???????????????????????? | | #####???????? % ;##?????????? ??????????? | | ## ##???????? ????????? ??????????? | | ###???????; ##?????? #??????????? | | #???????##s ##??? #????????????? | | ??# ###??####; l ## #?????????????? | | ### "####;### g % #??????????????? | | # @ #???????????????? | | % %## #???????????????? | | % % ;;;#### ##???? #???????????????? | | """ % #?????# #???????????????????????? | | "### #?????# #??????????????????????? | | "#?# #?????# #?????????????????????? | | % ###? #???? #?????????????????????? | | #?? #??# #?????????????????????? | | % "#?# ##??## #####?????????????????????? | | #####?########????####?????????????????????????? | | ##??????????????????????????????????????????????? | | ##???????????????????????????????????????????????? | | #????????????????????????????????????????????????? | | #?#??????????????????????????????????????????????? | | #???#?#??????????????????????????????????????????? | | #####????????????????????????????????????????????? | | #???##???????????????????????????????????????????? | | #?#?#????????????????????????????????????????????? | | ??###?#??????????????????????????????????????????? | | ?##????#?????????????????????????????????????????? | | ?#???#???????????????????????????????????????????? | | ???##???#????????????????????????????????????????? | | ????#?#??????????????????????????????????????????? | | #????????????????????????????????????????????????? | | ????#???##???????????????????????????????????????? | +----------------------------------------------------+ Best States ------------- Heat Dissipation 48 Energy Generation 16 Energy Capacity 290 Matter Stores 304 Matter Capacity 1800 Sight Range 16 Robot Scan Range 15 Terrain Scan Range 16 Terrain Scan Density 110 Armor Coverage 375 Utility Shielding 66 Evasion (%) 57 Authchip Count 1 Item Schematics ----------------- Hcp. Storage Unit | -10/Materials | Hacked Sensor Array | -8/Materials | Scanalyzed Adv. Targeting Computer | -8/Materials | Scanalyzed Imp. Utility Shielding | -7/Factory | Scanalyzed Mic. Nuclear Core | -7/Factory | Scanalyzed Combat Drone Bay | -7/Data Miner | Free Lgt. Regenerative Plating | -7/Data Miner | Free Cld. Cesium-ion Thruster | -7/Data Miner | Free Exp. Weapon Shielding | -7/Data Miner | Free Force Rifle | -7/Data Miner | Free Field Propulsion Drive | -7/Data Miner | Free Imp. Recalibrator | -7/Data Miner | Free Disruptor Cannon | -7/Data Miner | Free Imp. Particle Charger | -7/Data Miner | Free Adv. Salvage Targeting Computer | -7/Data Miner | Free Imp. Focal Shield | -7/Data Miner | Free Adv. Thermal Shield | -7/Data Miner | Free Robot Schematics ------------------ B-48 Gladiator | -7/Data Miner | Free Y-54 Guardian | -7/Data Miner | Free H-66 Slayer | -7/Data Miner | Free G-50 Soldier | -7/Data Miner | Free A-15 Conveyor | -7/Data Miner | Free Fabricated ------------ Nothing Alien Tech Used ----------------- Core Expander Achievements -------------- None Challenges ------------ None Game ------ Seed TowerThrowingKatana Manual? 0 Play Time 01:04:06 Cumulative 308.3 hours Start 2025.03.03 @ 23:16:16 End 2025.03.04 @ 00:20:19 Sessions 1 Manual Loads 0 Difficulty Rogue Special Mode None Game No. 166 Rogue 166 Adventurer 0 Explorer 0 Win Type - Total 4 Types 4/0/0/0/0/0/0/0/0 Lore% 52 Gallery% 68 Achievement% 60 Wizard Run 0 Options --------- Layout 0 ASCII 0 Keyboard 1 Movement Vi Keybinds 0 Fullscreen 2 Font 18/SmallcapsGlow Map View 76x50 Zoom Use 0% Tactical HUD 1 Map Filters NONE Filters NONE Steam 1 RUN: 84b13603-72f9-4b62-8351-ce1c3e73fb83